bitfinex/quotes_BTCUSD_20230114
["timestamp","ask_amount","ask_price","bid_price","bid_amount"]
[1673691023709,0.00105939,20482.0,20481.0,3.44202369]
[1673691023966,0.00105939,20482.0,20481.0,3.98153015]
[1673691024258,5.939e-05,20482.0,20481.0,3.54053015]
[1673691024512,5.939e-05,20482.0,20481.0,3.57672369]
[1673691025506,5.939e-05,20482.0,20481.0,3.099522]
[1673691025752,5.939e-05,20482.0,20481.0,2.957522]
[1673691026006,0.40536821,20491.0,20482.0,0.1]
[1673691026256,0.487996,20492.0,20484.0,1.110038]
[1673691026504,0.487996,20492.0,20485.0,0.31095895]
[1673691026751,0.487996,20492.0,20486.0,0.70757795]
[1673691026752,0.55566316,20492.0,20486.0,0.70757795]
[1673691026995,1.420275,20493.0,20487.0,0.19072595]
[1673691027245,0.3,20492.0,20488.0,0.19072595]
[1673691027485,0.36232562,20492.0,20489.0,0.0085]
[1673691027726,0.06355199,20491.0,20489.0,0.0085]
[1673691027975,0.06355199,20491.0,20488.0,0.0085]
[1673691028498,0.06355199,20491.0,20488.0,0.0745]
[1673691028749,0.06355199,20491.0,20488.0,0.00702032]
[1673691029030,0.30950339,20493.0,20488.0,0.56110832]
[1673691029286,0.3,20493.0,20488.0,0.75183427]
[1673691029532,0.1335,20491.0,20488.0,0.066]
[1673691029785,0.689046,20490.0,20488.0,0.066]
[1673691030040,0.622802,20489.0,20488.0,0.066]
[1673691030292,0.622802,20489.0,20487.0,0.0481174]
[1673691030552,0.201004,20488.0,20486.0,0.14759626]
[1673691030790,0.3,20489.0,20486.0,0.14759626]
[1673691031077,0.322802,20488.0,20486.0,0.14759626]
[1673691031325,0.201004,20487.0,20486.0,0.14759626]
[1673691031823,0.3,20487.0,20486.0,0.15809626]
[1673691032062,0.3,20487.0,20486.0,0.0085]
[1673691032313,0.00861489,20488.0,20485.0,0.1085]
[1673691032566,0.00861489,20488.0,20485.0,0.0085]
[1673691033064,0.01142882,20487.0,20486.0,0.01]
[1673691033284,0.01142882,20487.0,20486.0,0.0185]
[1673691033562,0.488042,20490.0,20486.0,0.0185]
[1673691033826,0.40235966,20492.0,20487.0,0.19072595]
[1673691033827,0.0090075,20489.0,20487.0,0.19072595]
[1673691034067,0.01016301,20490.0,20487.0,0.0085]
[1673691034290,0.01016301,20490.0,20487.0,0.29922595]
[1673691034570,0.01016301,20490.0,20487.0,0.19922595]
[1673691034824,0.01005947,20492.0,20488.0,0.18730409]
[1673691035084,0.01005947,20492.0,20488.0,0.37803004]
[1673691035328,0.00959835,20491.0,20488.0,0.37803004]
[1673691035593,0.487974,20493.0,20488.0,0.18730409]
[1673691035594,0.0088563,20490.0,20488.0,0.18730409]
[1673691037297,0.0088563,20490.0,20488.0,0.002]
[1673691037544,1.276006,20492.0,20487.0,0.05265202]
[1673691037545,0.33236417,20489.0,20487.0,0.05265202]
[1673691037786,0.33236417,20489.0,20488.0,0.067]
[1673691037787,0.00956217,20489.0,20488.0,0.067]
[1673691038278,0.00956217,20489.0,20486.0,0.24200901]
[1673691038279,0.00956217,20489.0,20486.0,0.14200901]
[1673691039018,0.22602842,20489.0,20484.0,0.04996938]
[1673691039263,0.756502,20488.0,20484.0,0.04996938]
[1673691039507,0.201004,20487.0,20484.0,0.04996938]
[1673691039750,0.322802,20486.0,20484.0,0.04996938]
[1673691040012,0.92181,20488.0,20484.0,0.04996938]
[1673691040260,1.11735534,20488.0,20481.0,0.488435]
[1673691040502,0.92181,20488.0,20484.0,0.002]
[1673691040757,0.01009168,20487.0,20484.0,0.19072595]
[1673691041037,0.322802,20486.0,20484.0,0.008]
[1673691041287,0.01009168,20487.0,20484.0,0.17428466]
[1673691042072,0.01009168,20487.0,20485.0,0.15065845]
[1673691042321,0.488033,20491.0,20485.0,0.19072595]
[1673691042575,0.01142949,20492.0,20486.0,0.19922595]
[1673691042822,1.56256,20494.0,20487.0,1.18715395]
[1673691043064,0.01192271,20491.0,20488.0,0.19072595]
[1673691043303,0.322802,20490.0,20487.0,0.04960601]
[1673691043558,0.201004,20489.0,20487.0,0.04847169]
[1673691043809,0.322802,20488.0,20487.0,0.04847169]
[1673691044064,0.622802,20488.0,20484.0,0.00019]
[1673691044312,0.501004,20487.0,20484.0,0.00019]
[1673691044562,0.322802,20486.0,20484.0,0.16859508]
[1673691044823,0.3,20487.0,20484.0,0.16859508]
[1673691045075,0.921815,20487.0,20484.0,0.16859508]
[1673691045325,0.322802,20486.0,20484.0,0.00019]
[1673691045580,1.611028,20485.0,20484.0,0.00019]
[1673691045826,0.1,20484.0,20483.0,0.0486783]
[1673691046077,0.1,20484.0,20479.0,0.19241533]
[1673691046078,0.810987,20484.0,20482.0,0.14855168]
[1673691046331,0.201004,20483.0,20482.0,0.14855168]
[1673691046597,0.201004,20483.0,20479.0,0.00982105]
[1673691046841,0.488115,20487.0,20484.0,0.15972334]
[1673691047088,1.03227216,20486.0,20484.0,0.19072595]
[1673691047339,1.03227216,20486.0,20482.0,0.01]
[1673691047340,0.322802,20485.0,20482.0,0.189738]
[1673691047597,1.122889,20484.0,20482.0,0.189738]
[1673691047843,0.322802,20483.0,20481.0,0.04934718]
[1673691048088,0.201004,20482.0,20481.0,0.04934718]
[1673691048335,0.201004,20482.0,20480.0,0.00019]
[1673691048582,0.322802,20481.0,20480.0,0.00019]
[1673691048865,1.11990721,20483.0,20480.0,0.00019]
[1673691049107,0.1,20482.0,20480.0,0.00019]
[1673691049351,0.322802,20481.0,20480.0,0.00019]
[1673691049624,0.322802,20481.0,20479.0,0.17239921]
[1673691049871,0.588235,20482.0,20479.0,0.17239921]
[1673691050117,0.488235,20482.0,20479.0,0.17239921]
[1673691050380,0.00999662,20481.0,20480.0,0.002]
[1673691050631,0.33279862,20481.0,20479.0,0.00982105]
[1673691050875,0.201004,20480.0,20479.0,0.01282105]
[1673691051118,0.201004,20480.0,20479.0,0.00982105]
[1673691051623,0.14279662,20481.0,20479.0,0.00982105]
[1673691051866,0.14279662,20481.0,20479.0,0.19326872]
[1673691052376,0.15279662,20481.0,20480.0,0.002]
[1673691052625,0.15279662,20481.0,20479.0,0.00982105]
[1673691052626,1.07757,20481.0,20479.0,0.00982105]
[1673691052866,0.767504,20480.0,20479.0,0.01282105]
[1673691053113,0.34406349,20480.0,20479.0,0.01282105]
[1673691053358,0.333804,20480.0,20479.0,0.01282105]
[1673691053601,0.50009976,20482.0,20479.0,0.00982105]
[1673691053855,0.50009976,20482.0,20479.0,0.36155576]
[1673691053856,0.322802,20481.0,20479.0,0.36155576]
[1673691054111,0.1337,20482.0,20479.0,0.242267]
[1673691054348,0.00019,20483.0,20480.0,0.0085]
[1673691054601,0.00019,20483.0,20481.0,0.508512]
[1673691054850,0.00019,20483.0,20482.0,0.128749]
[1673691055090,0.00019,20483.0,20482.0,0.05022]
[1673691055589,0.01,20483.0,20482.0,0.2426666]
[1673691055842,0.36340862,20486.0,20482.0,0.05022]
[1673691056098,0.009,20483.0,20482.0,0.93634401]
[1673691056352,0.009,20483.0,20482.0,0.54845]
[1673691056589,0.009,20483.0,20482.0,0.74071767]
[1673691057084,0.009,20483.0,20482.0,0.23223867]
[1673691057335,0.009,20483.0,20482.0,0.19051867]
[1673691058304,0.009,20483.0,20482.0,0.526981]
[1673691058841,0.009,20483.0,20482.0,0.626981]
[1673691059320,0.14533259,20487.0,20482.0,0.616981]
[1673691059521,0.14533259,20487.0,20483.0,0.19072595]
[1673691059802,0.14533259,20487.0,20484.0,0.0085]
[1673691060047,0.14533259,20487.0,20484.0,0.68740795]
[1673691060289,0.37228686,20488.0,20484.0,0.496682]
[1673691060532,0.37228686,20488.0,20484.0,0.68740795]
[1673691060800,0.36340862,20489.0,20484.0,0.68740795]
[1673691061047,0.36346862,20489.0,20485.0,0.19072595]
[1673691061299,6e-05,20489.0,20486.0,0.70759595]
[1673691061544,6e-05,20489.0,20486.0,0.68735895]
[1673691061796,6e-05,20489.0,20487.0,0.020228]
[1673691062055,6e-05,20489.0,20488.0,0.05022]
[1673691062306,0.35578964,20491.0,20488.0,0.0085]
[1673691062545,0.14533259,20491.0,20488.0,0.19922595]
[1673691062817,0.14533259,20491.0,20488.0,0.0085]
[1673691063067,0.008,20489.0,20488.0,0.0085]
[1673691063313,0.008,20489.0,20487.0,0.01]
[1673691063314,0.341504,20489.0,20487.0,0.01]
[1673691063581,0.01537521,20487.0,20486.0,0.04935274]
[1673691063827,0.64914058,20487.0,20485.0,0.00019]
[1673691064071,0.422802,20486.0,20485.0,0.00019]
[1673691064321,0.422802,20486.0,20485.0,0.04191]
[1673691064322,0.322802,20486.0,20485.0,0.04191]
[1673691064565,0.44813658,20487.0,20485.0,0.04191]
[1673691064818,0.44813658,20487.0,20485.0,0.04172]
[1673691065069,0.44813658,20487.0,20485.0,0.14172]
[1673691065601,0.44813658,20487.0,20485.0,0.04172]
[1673691065846,0.44813658,20487.0,20484.0,0.488181]
[1673691066110,0.44813658,20487.0,20485.0,0.28415453]
[1673691066111,0.47313658,20487.0,20485.0,0.28415453]
[1673691066374,0.47313658,20487.0,20485.0,0.18415453]
[1673691066865,0.44813658,20487.0,20485.0,0.18215453]
[1673691067377,0.44813658,20487.0,20485.0,0.17365453]
[1673691067630,0.47313658,20487.0,20485.0,0.002]
[1673691067874,0.47313658,20487.0,20486.0,0.1]
[1673691068123,0.47313658,20487.0,20486.0,0.616872]
[1673691068373,0.47313658,20487.0,20486.0,0.596638]
[1673691068617,0.47313658,20487.0,20486.0,0.78102931]
[1673691068858,0.47313658,20487.0,20486.0,0.70126131]
[1673691069100,0.44813658,20487.0,20486.0,0.68102931]
[1673691069352,0.47213658,20487.0,20486.0,0.68902931]
[1673691070574,0.024,20487.0,20486.0,0.68902931]
[1673691070816,0.024,20487.0,20486.0,0.70926131]
[1673691071301,0.024,20487.0,20486.0,0.80926131]
[1673691072340,0.15372827,20492.0,20487.0,0.1]
[1673691072341,0.00943108,20492.0,20487.0,0.1]
[1673691072593,0.00943108,20492.0,20488.0,2.22174493]
[1673691072834,0.00943108,20492.0,20490.0,0.1]
[1673691073082,0.00943108,20492.0,20491.0,1.004754]
[1673691073828,0.00943108,20492.0,20491.0,1.15408483]
[1673691074321,0.00943108,20492.0,20491.0,1.004754]
[1673691074817,0.00943108,20492.0,20491.0,1.404754]
[1673691075308,0.00943108,20492.0,20491.0,1.80911698]
[1673691075568,0.00943108,20492.0,20491.0,1.004754]
[1673691075817,0.00943108,20492.0,20491.0,1.18164606]
[1673691076075,0.00943108,20492.0,20491.0,0.83362706]
[1673691076327,0.00943108,20492.0,20491.0,0.19710806]
[1673691076570,0.00943108,20492.0,20491.0,0.31689206]
[1673691076826,0.00943108,20492.0,20491.0,0.17689206]
[1673691077073,0.00943108,20492.0,20491.0,0.26989206]
[1673691077328,0.00943108,20492.0,20491.0,0.19710406]
[1673691077575,0.00943108,20492.0,20491.0,0.26989206]
[1673691078061,0.00943108,20492.0,20491.0,0.27839206]
[1673691078578,0.00943108,20492.0,20491.0,0.29860406]
[1673691078825,0.00943108,20492.0,20491.0,0.27839206]
[1673691079578,0.00943108,20492.0,20491.0,0.78662306]
[1673691079831,0.00943108,20492.0,20491.0,0.709731]
[1673691080088,0.00943108,20492.0,20491.0,1.009731]
[1673691080600,0.00943108,20494.0,20492.0,0.00939892]
[1673691080851,0.00943108,20494.0,20493.0,1.706113]
[1673691081123,0.00943108,20494.0,20493.0,2.43068198]
[1673691081366,0.00943108,20494.0,20493.0,2.026319]
[1673691082910,0.00943108,20494.0,20493.0,1.96174322]
[1673691083172,0.00943108,20494.0,20493.0,0.70460122]
[1673691083435,0.00943108,20494.0,20493.0,0.647177]
[1673691083679,0.00943108,20494.0,20493.0,0.608177]
[1673691083928,0.00943108,20494.0,20493.0,0.747177]
[1673691084181,0.00943108,20494.0,20493.0,0.608177]
[1673691084407,0.00943108,20494.0,20493.0,0.755677]
[1673691085155,0.00943108,20494.0,20493.0,1.050377]
[1673691085405,0.00943108,20494.0,20493.0,1.189377]
[1673691085917,0.00943108,20494.0,20493.0,1.050377]
[1673691086169,0.00943108,20494.0,20493.0,1.189377]
[1673691087453,0.00943108,20494.0,20493.0,1.03499325]
[1673691087705,0.00943108,20494.0,20493.0,0.79279325]
[1673691088205,0.00943108,20494.0,20493.0,0.159206]
[1673691088445,0.00943108,20494.0,20493.0,0.139]
[1673691088948,0.00943108,20494.0,20490.0,0.488035]
[1673691089207,0.49737808,20494.0,20493.0,0.141]
[1673691089465,0.82118008,20494.0,20493.0,0.141]
[1673691089711,0.1,20491.0,20489.0,0.04893828]
[1673691089962,0.201004,20490.0,20489.0,0.04893828]
[1673691090205,0.22014015,20492.0,20489.0,0.00019]
[1673691090707,0.22014015,20492.0,20489.0,0.19190585]
[1673691091193,0.22014015,20492.0,20489.0,0.19171585]
[1673691091446,0.22014015,20492.0,20487.0,0.488114]
[1673691091690,0.22014015,20492.0,20488.0,0.18914845]
[1673691092206,0.22014015,20492.0,20489.0,0.028]
[1673691092452,0.22014015,20492.0,20488.0,0.18914845]
[1673691092705,0.22114015,20492.0,20488.0,0.28914845]
[1673691092950,0.22114015,20492.0,20488.0,0.18914845]
[1673691092951,0.22014015,20492.0,20488.0,0.18914845]
[1673691093195,0.22014015,20492.0,20489.0,0.028]
[1673691093442,0.22014015,20492.0,20488.0,0.18914845]
[1673691093688,0.22114015,20492.0,20488.0,0.28914845]
[1673691093930,0.22014015,20492.0,20488.0,0.18914845]
[1673691094178,0.22014015,20492.0,20489.0,0.0085]
[1673691094427,0.22014015,20492.0,20489.0,0.22722595]
[1673691094692,0.22014015,20492.0,20489.0,0.624555]
[1673691095171,0.22014015,20492.0,20490.0,0.020216]
[1673691095417,0.22114015,20492.0,20490.0,0.15967229]
[1673691095663,0.22114015,20492.0,20490.0,0.488034]
[1673691095664,0.22014015,20492.0,20490.0,0.488034]
[1673691095911,0.22014015,20492.0,20491.0,0.028714]
[1673691096162,0.22014015,20492.0,20491.0,0.516733]
[1673691096428,0.23114015,20492.0,20490.0,0.18476819]
[1673691096677,0.23114015,20492.0,20488.0,0.15296851]
[1673691097698,0.23114015,20492.0,20488.0,0.34369446]
[1673691097944,0.22014015,20492.0,20488.0,0.83178346]
[1673691098197,0.23014015,20492.0,20491.0,0.04772]
[1673691098446,0.23014015,20492.0,20491.0,0.05022]
[1673691098447,0.22014015,20492.0,20491.0,0.05022]
[1673691098691,0.22114015,20492.0,20491.0,0.05022]
[1673691099192,0.22114015,20492.0,20488.0,0.28622361]
[1673691099434,0.22014015,20492.0,20488.0,0.18622361]
[1673691099683,0.23014015,20492.0,20491.0,0.006]
[1673691100696,0.54294215,20492.0,20488.0,0.18622361]
[1673691100939,0.22114015,20492.0,20488.0,0.28622361]
[1673691101189,0.70914215,20492.0,20487.0,0.00019]
[1673691101449,0.1337,20490.0,20487.0,0.00019]
[1673691101693,1.277136,20489.0,20487.0,0.00019]
[1673691101938,1.076132,20489.0,20488.0,0.1]
[1673691102184,1.831434,20489.0,20487.0,0.00019]
[1673691102429,0.501004,20488.0,20486.0,0.19874461]
[1673691102678,0.910916,20487.0,20486.0,0.19874461]
[1673691102921,0.910916,20487.0,20486.0,0.1506415]
[1673691103175,1.210916,20487.0,20486.0,0.1506415]
[1673691103415,1.210916,20487.0,20486.0,0.1566415]
[1673691103972,1.343616,20487.0,20486.0,0.15657696]
[1673691104491,1.343616,20487.0,20486.0,0.15057696]
[1673691104738,1.353616,20487.0,20486.0,0.16057696]
[1673691105227,1.353616,20487.0,20486.0,0.17057696]
[1673691105228,1.363616,20487.0,20486.0,0.17057696]
[1673691105474,1.343616,20487.0,20486.0,0.15037234]
[1673691105715,1.343616,20487.0,20486.0,0.16137234]
[1673691105716,1.353616,20487.0,20486.0,0.16137234]
[1673691106212,0.963616,20487.0,20486.0,0.17237234]
[1673691106700,0.1,20486.0,20483.0,0.13361236]
[1673691106947,0.201004,20485.0,20482.0,0.05874733]
[1673691107197,0.02553306,20486.0,20482.0,0.23872284]
[1673691107694,0.02553306,20486.0,20483.0,0.14465076]
[1673691108686,0.011,20486.0,20483.0,0.14465076]
[1673691109178,0.011,20486.0,20484.0,0.0085]
[1673691109428,0.03161996,20487.0,20484.0,0.0085]
[1673691109687,0.01,20486.0,20484.0,0.68741095]
[1673691109930,0.01,20486.0,20485.0,0.020241]
[1673691110175,0.01,20486.0,20485.0,0.028741]
[1673691110664,0.0284477,20489.0,20485.0,0.028741]
[1673691110909,0.48803,20491.0,20485.0,0.19922595]
[1673691111159,0.02732267,20490.0,20486.0,0.19072595]
[1673691111657,0.84184715,20492.0,20486.0,0.19072595]
[1673691111906,0.03121498,20491.0,20487.0,0.19922595]
[1673691112151,0.01,20490.0,20487.0,0.19922595]
[1673691112394,0.04179995,20490.0,20487.0,0.0085]
[1673691112892,0.03179995,20490.0,20487.0,0.0085]
[1673691113435,0.03137611,20489.0,20487.0,0.15677095]
[1673691114180,1.10070533,20491.0,20487.0,0.15677095]
[1673691114440,1.10070533,20491.0,20488.0,0.1703689]
[1673691114934,0.35155611,20490.0,20485.0,0.04888777]
[1673691115177,0.1325,20488.0,20485.0,0.24005324]
[1673691115919,0.620597,20488.0,20485.0,0.24005324]
[1673691116171,0.44701952,20487.0,20485.0,0.24005324]
[1673691116417,0.02421752,20487.0,20485.0,0.24005324]
[1673691116653,0.02421752,20487.0,20485.0,0.19116547]
[1673691116895,0.02421752,20487.0,20482.0,0.05880756]
[1673691117159,0.66563027,20487.0,20483.0,0.19848978]
[1673691117399,0.51233752,20487.0,20485.0,0.027]
[1673691117915,0.51233752,20487.0,20484.0,0.15979557]
[1673691118471,0.51333752,20487.0,20484.0,0.15979557]
[1673691118712,0.03067731,20486.0,20485.0,0.027]
[1673691119689,0.03067731,20486.0,20484.0,0.15979557]
[1673691120420,0.03067731,20486.0,20485.0,0.027]
[1673691120661,0.62112,20489.0,20485.0,0.028735]
[1673691120662,0.00013,20489.0,20485.0,0.028735]
[1673691120912,0.00013,20489.0,20486.0,0.19922595]
[1673691121199,0.00013,20489.0,20487.0,0.020229]
[1673691121447,0.22014015,20492.0,20486.0,0.68734995]
[1673691121448,0.22014015,20492.0,20488.0,0.15158822]
[1673691121696,0.24410214,20492.0,20489.0,0.19072595]
[1673691122923,0.24410214,20492.0,20488.0,0.15158822]
[1673691123169,0.009,20489.0,20488.0,0.15158822]
[1673691123661,0.009,20489.0,20488.0,0.17180822]
[1673691123905,0.25310214,20492.0,20488.0,0.17180822]
[1673691123906,0.24410214,20492.0,20488.0,0.17180822]
[1673691124151,0.22914015,20492.0,20488.0,0.35231417]
[1673691124395,0.22914015,20492.0,20488.0,0.34231417]
[1673691124642,0.22914015,20492.0,20489.0,0.19094794]
[1673691124886,0.22014015,20492.0,20489.0,0.19094794]
[1673691125130,0.22914015,20492.0,20489.0,0.19094794]
[1673691125883,0.22914015,20492.0,20490.0,0.21944295]
[1673691126141,0.22014015,20492.0,20490.0,0.68724995]
[1673691126384,0.22814015,20492.0,20491.0,0.020214]
[1673691126640,0.22814015,20492.0,20491.0,0.516733]
[1673691127141,0.00943108,20494.0,20492.0,0.1]
[1673691127423,0.00943108,20494.0,20493.0,0.05022]
[1673691127646,0.00943108,20494.0,20493.0,1.046368]
[1673691128144,0.00149712,20494.0,20493.0,1.146368]
[1673691128922,0.00249712,20494.0,20493.0,1.046368]
[1673691129169,0.00149712,20494.0,20493.0,1.046368]
[1673691129407,0.00149712,20494.0,20493.0,1.33849774]
[1673691130412,0.00149712,20494.0,20493.0,1.144368]
[1673691130654,0.00149712,20494.0,20493.0,1.244368]
[1673691130894,0.00149712,20494.0,20493.0,1.544368]
[1673691132389,0.00149712,20494.0,20493.0,1.144368]
[1673691133146,0.00149712,20494.0,20493.0,0.118206]
[1673691133656,0.02846637,20494.0,20493.0,0.118206]
[1673691133927,0.00906293,20494.0,20493.0,0.098]
[1673691134178,0.83780031,20494.0,20493.0,0.098]
[1673691134434,0.81224612,20494.0,20493.0,0.098]
[1673691134674,0.81224612,20494.0,20489.0,0.04900818]
[1673691134675,0.14840687,20492.0,20489.0,0.04900818]
[1673691134916,0.2663,20490.0,20489.0,0.04900818]
[1673691135165,0.855602,20490.0,20489.0,0.00019]
[1673691135656,0.555602,20490.0,20489.0,0.00019]
[1673691136149,0.855602,20490.0,20489.0,0.00019]
[1673691136396,0.791302,20490.0,20489.0,0.00819]
[1673691136648,1.091302,20490.0,20486.0,0.168705]
[1673691136887,0.7368,20490.0,20489.0,0.007]
[1673691137136,1.681344,20490.0,20489.0,0.007]
[1673691137382,2.169386,20490.0,20489.0,0.007]
[1673691137869,1.869386,20490.0,20489.0,0.007]
[1673691138118,2.10061736,20490.0,20489.0,0.007]
[1673691138359,1.89661736,20490.0,20485.0,0.14206669]
[1673691138606,0.133,20488.0,20486.0,0.17040476]
[1673691138852,0.322802,20487.0,20486.0,0.16240476]
[1673691139112,0.621093,20488.0,20486.0,0.16240476]
[1673691139353,0.621093,20488.0,20485.0,0.04893596]
[1673691139354,0.488075,20489.0,20487.0,0.19232149]
[1673691140120,0.74807336,20490.0,20487.0,0.19232149]
[1673691140376,0.65207336,20490.0,20487.0,0.19232149]
[1673691140868,0.621533,20491.0,20487.0,0.38304744]
[1673691141162,0.28273254,20492.0,20488.0,0.19072595]
[1673691141413,0.102,20489.0,20487.0,0.496109]
[1673691141667,0.28273254,20492.0,20488.0,0.02872]
[1673691141912,0.30895907,20492.0,20488.0,0.19922595]
[1673691142419,0.40195907,20492.0,20488.0,0.69531595]
[1673691142681,0.37573254,20492.0,20488.0,0.69531595]
[1673691142938,0.37573254,20492.0,20489.0,0.17272577]
[1673691143180,0.37573254,20492.0,20488.0,0.008]
[1673691143181,0.1329,20489.0,20488.0,0.008]
[1673691143422,0.322802,20489.0,20488.0,0.008]
[1673691143953,0.622802,20489.0,20488.0,0.008]
[1673691144197,0.622802,20489.0,20486.0,0.0493081]
[1673691144441,1.477184,20488.0,20486.0,0.0493081]
[1673691144684,0.322802,20487.0,20483.0,0.17495479]
[1673691144933,0.201004,20486.0,20482.0,0.96320797]
[1673691145181,1.66114189,20488.0,20482.0,0.96320797]
[1673691145182,0.588119,20487.0,20482.0,0.00990797]
[1673691145436,0.02756491,20485.0,20482.0,0.00990797]
[1673691145943,0.02756491,20485.0,20482.0,0.09990797]
[1673691146186,0.02756491,20485.0,20482.0,0.00990797]
[1673691146428,0.02756491,20485.0,20482.0,0.24318846]
[1673691146678,0.02756491,20485.0,20483.0,0.18832822]
[1673691147664,0.03656491,20485.0,20482.0,0.09990797]
[1673691147941,0.02873321,20484.0,20482.0,0.09990797]
[1673691148191,0.02873321,20484.0,20482.0,0.00990797]
[1673691148437,0.02873321,20484.0,20483.0,0.046]
[1673691148687,0.02873321,20484.0,20482.0,0.00990797]
[1673691148934,0.02873321,20484.0,20482.0,0.09990797]
[1673691149178,0.1337,20483.0,20482.0,0.00990797]
[1673691149429,0.1337,20483.0,20482.0,0.09990797]
[1673691149430,0.944711,20483.0,20482.0,0.09990797]
[1673691149949,1.344711,20483.0,20482.0,0.09990797]
[1673691150444,0.1,20482.0,20481.0,0.29349794]
[1673691150691,2.32097169,20482.0,20481.0,0.29349794]
[1673691150938,2.32097169,20482.0,20480.0,0.00990797]
[1673691150939,0.1,20481.0,20480.0,0.00990797]
[1673691151191,2.01488761,20481.0,20480.0,0.00990797]
[1673691151687,2.98438761,20481.0,20480.0,7.97e-06]
[1673691151942,2.98438761,20481.0,20479.0,0.94512386]
[1673691152193,1.24560569,20480.0,20479.0,0.94512386]
[1673691152443,2.32216769,20480.0,20479.0,0.83088287]
[1673691152700,2.32216769,20480.0,20478.0,0.01132732]
[1673691152701,0.1,20479.0,20478.0,0.01132732]
[1673691152943,0.555302,20479.0,20478.0,0.20205327]
[1673691153188,0.455302,20479.0,20478.0,0.20494362]
[1673691153452,0.488281,20480.0,20478.0,0.20494362]
[1673691154458,0.136,20479.0,20478.0,0.20494362]
[1673691154700,0.488293,20482.0,20478.0,0.20494362]
[1673691154954,0.136,20480.0,20478.0,0.20205327]
[1673691155207,6e-05,20482.0,20478.0,0.01132732]
[1673691155462,0.136,20480.0,20479.0,0.19072595]
[1673691155720,0.03015751,20484.0,20479.0,0.2057337]
[1673691155963,0.57283242,20484.0,20479.0,0.38363621]
[1673691156221,0.51834451,20484.0,20479.0,0.38562613]
[1673691156474,0.1,20482.0,20479.0,0.435336]
[1673691156732,0.081,20480.0,20479.0,0.24461005]
[1673691156986,0.488251,20482.0,20479.0,0.24461005]
[1673691157234,0.488251,20482.0,20479.0,0.20190018]
[1673691157472,0.65110375,20482.0,20479.0,0.19490018]
[1673691157728,0.496251,20482.0,20479.0,0.19790018]
[1673691157954,0.488251,20482.0,20479.0,0.19490018]
[1673691158197,0.02442017,20481.0,20479.0,0.19790018]
[1673691158443,0.02442017,20481.0,20479.0,0.19490018]
[1673691158687,1.15945449,20481.0,20478.0,0.01132732]
[1673691158932,0.456302,20480.0,20478.0,0.01132732]
[1673691159187,0.789309,20479.0,20478.0,0.01132732]
[1673691159442,0.923009,20479.0,20478.0,0.01132732]
[1673691159699,0.1,20478.0,20477.0,0.2561807]
[1673691159967,0.1,20478.0,20475.0,0.01164414]
[1673691159968,1.3930081,20478.0,20475.0,0.01164414]
[1673691160211,0.42868637,20476.0,20475.0,0.01164414]
[1673691160482,2.51661637,20476.0,20475.0,0.01164414]
[1673691160733,1.86194037,20476.0,20475.0,0.01164414]
[1673691160980,1.86194037,20476.0,20475.0,0.16097508]
[1673691161228,1.23986437,20476.0,20475.0,0.16097508]
[1673691161482,1.23986437,20476.0,20475.0,0.01164414]
[1673691161726,1.53460118,20476.0,20475.0,0.01164414]
[1673691161975,1.93460118,20476.0,20475.0,0.01164414]
[1673691162477,1.79760118,20476.0,20475.0,0.01164414]
[1673691162724,2.37074309,20476.0,20475.0,0.01164414]
[1673691162975,2.23474309,20476.0,20475.0,0.01164414]
[1673691163210,2.84794478,20476.0,20475.0,0.01164414]
[1673691163457,2.71194478,20476.0,20475.0,0.01164414]
[1673691163700,2.40741606,20476.0,20475.0,0.01164414]
[1673691163948,2.54341606,20476.0,20475.0,0.01164414]
[1673691164199,2.40741606,20476.0,20475.0,0.01164414]
[1673691164678,2.54441606,20476.0,20475.0,0.01164414]
[1673691165171,2.53441606,20476.0,20475.0,0.01164414]
[1673691165417,2.10876423,20476.0,20475.0,0.01164414]
[1673691165679,1.50056437,20476.0,20475.0,0.20237009]
[1673691165912,1.36686437,20476.0,20475.0,0.2102542]
[1673691166177,1.22986437,20476.0,20475.0,0.2102542]
[1673691166425,0.74148837,20476.0,20475.0,0.2102542]
[1673691166675,0.55568637,20476.0,20475.0,0.2102542]
[1673691166924,0.87848837,20476.0,20475.0,0.2102542]
[1673691167169,0.55568637,20476.0,20475.0,0.2102542]
[1673691167420,0.55568637,20476.0,20475.0,0.24409009]
[1673691167671,0.55568637,20476.0,20475.0,0.05336414]
[1673691167920,0.55568637,20476.0,20475.0,0.07363914]
[1673691168662,0.41868637,20476.0,20475.0,0.07363914]
[1673691168911,0.55368637,20476.0,20475.0,0.07463914]
[1673691169165,0.55368637,20476.0,20475.0,0.2497331]
[1673691169166,0.41868637,20476.0,20475.0,0.2497331]
[1673691169416,0.55368637,20476.0,20475.0,0.2090131]
[1673691169667,0.55368637,20476.0,20475.0,0.01264414]
[1673691169668,0.68618637,20476.0,20475.0,0.01264414]
[1673691170153,1.30898837,20476.0,20475.0,0.01264414]
[1673691170423,1.79736437,20476.0,20475.0,0.01264414]
[1673691170668,1.98014453,20476.0,20475.0,0.01264414]
[1673691171421,2.40130508,20476.0,20475.0,0.01264414]
[1673691171669,1.84514453,20476.0,20475.0,0.01164414]
[1673691171921,1.98114453,20476.0,20475.0,0.01164414]
[1673691172202,1.68114453,20476.0,20475.0,0.01164414]
[1673691172439,1.65819453,20476.0,20475.0,0.01164414]
[1673691172923,1.52449453,20476.0,20475.0,0.01164414]
[1673691173167,1.38849453,20476.0,20475.0,0.01164414]
[1673691173423,0.90011853,20476.0,20475.0,0.01164414]
[1673691173667,1.03611853,20476.0,20475.0,0.01164414]
[1673691174153,1.52449453,20476.0,20475.0,0.01164414]
[1673691174636,1.82449453,20476.0,20475.0,0.01164414]
[1673691174890,1.68849453,20476.0,20475.0,0.01164414]
[1673691175136,1.92449453,20476.0,20475.0,0.01164414]
[1673691175630,2.05789453,20476.0,20475.0,0.01164414]
[1673691175882,0.11018887,20474.0,20473.0,0.01164414]
[1673691176112,1.35381426,20474.0,20473.0,0.01164414]
[1673691176398,1.65381426,20474.0,20473.0,0.01164414]
[1673691176885,1.35381426,20474.0,20473.0,0.01164414]
[1673691178114,1.28881026,20474.0,20473.0,0.01164414]
[1673691178356,1.57953887,20474.0,20473.0,0.01164414]
[1673691178846,1.246548,20474.0,20473.0,0.1910336]
[1673691178851,0.894124,20474.0,20473.0,0.1910336]
[1673691179090,0.811226,20474.0,20473.0,0.1910336]
[1673691179330,0.947226,20474.0,20473.0,0.1910336]